[Event "Titled Tuesday Blitz May 17 Late 2022"]
[White "Babazada, Khazar"]
[Black "Tanenbaum, Zachary"]
[WhiteFideId "13413554"]
[BlackFideId "2060850"]
[WhiteElo "2406"]
[BlackElo "2168"]
[Result "1/2-1/2"]
[Round "05"]
[TimeControl "180+1"]
[Date "2022.05.17"]
[WhiteClock "0:00:08"]
[BlackClock "0:00:08"]

1. e4 {[%clk 0:03:00]}  e5 {[%clk 0:02:59]} 2. Nf3 {[%clk 0:03:01]}  Nc6 {[%clk 0:03:00]} 3. Bb5 {[%clk 0:03:00]}  a6 {[%clk 0:03:00]} 4. Ba4 {[%clk 0:03:00]}  d6 {[%clk 0:03:01]} 5. O-O {[%clk 0:02:59]}  Nf6 {[%clk 0:03:01]} 6. Re1 {[%clk 0:02:56]}  Be7 {[%clk 0:03:01]} 7. c3 {[%clk 0:02:56]}  O-O {[%clk 0:03:02]} 8. h3 {[%clk 0:02:55]}  b5 {[%clk 0:03:02]} 9. Bc2 {[%clk 0:02:54]}  Nb8 {[%clk 0:03:00]} 10. d4 {[%clk 0:02:54]}  Nbd7 {[%clk 0:03:01]} 11. Nbd2 {[%clk 0:02:53]}  Bb7 {[%clk 0:03:01]} 12. a4 {[%clk 0:02:53]}  Re8 {[%clk 0:03:01]} 13. Bd3 {[%clk 0:02:53]}  c6 {[%clk 0:03:01]} 14. Qc2 {[%clk 0:02:53]}  Bf8 {[%clk 0:03:01]} 15. b3 {[%clk 0:02:54]}  g6 {[%clk 0:03:00]} 16. Bb2 {[%clk 0:02:53]}  Bg7 {[%clk 0:03:00]} 17. Bf1 {[%clk 0:02:44]}  Qe7 {[%clk 0:02:42]} 18. axb5 {[%clk 0:02:14]}  axb5 {[%clk 0:02:37]} 19. Rxa8 {[%clk 0:02:14]}  Rxa8 {[%clk 0:02:36]} 20. c4 {[%clk 0:02:15]}  bxc4 {[%clk 0:02:24]} 21. Bxc4 {[%clk 0:02:08]}  exd4 {[%clk 0:02:13]} 22. Bxd4 {[%clk 0:02:09]}  Ne5 {[%clk 0:02:13]} 23. Nxe5 {[%clk 0:01:56]}  dxe5 {[%clk 0:02:14]} 24. Bc3 {[%clk 0:01:57]}  Nd7 {[%clk 0:02:08]} 25. b4 {[%clk 0:01:38]}  Nf8 {[%clk 0:02:02]} 26. Nb3 {[%clk 0:01:34]}  Bc8 {[%clk 0:01:52]} 27. Rd1 {[%clk 0:01:30]}  Be6 {[%clk 0:01:51]} 28. Qe2 {[%clk 0:01:27]}  Bxc4 {[%clk 0:01:36]} 29. Qxc4 {[%clk 0:01:28]}  Qe6 {[%clk 0:01:37]} 30. Qxe6 {[%clk 0:01:16]}  Nxe6 {[%clk 0:01:38]} 31. Na5 {[%clk 0:01:16]}  c5 {[%clk 0:01:17]} 32. b5 {[%clk 0:01:14]}  Nd4 {[%clk 0:01:17]} 33. Bxd4 {[%clk 0:01:02]}  exd4 {[%clk 0:01:00]} 34. Nc6 {[%clk 0:01:03]}  c4 {[%clk 0:00:53]} 35. b6 {[%clk 0:00:59]}  c3 {[%clk 0:00:51]} 36. b7 {[%clk 0:00:36]}  Rf8 {[%clk 0:00:44]} 37. Nxd4 {[%clk 0:00:17]}  Rb8 {[%clk 0:00:35]} 38. Ne2 {[%clk 0:00:06]}  Rxb7 {[%clk 0:00:32]} 39. Rc1 {[%clk 0:00:07]}  Rc7 {[%clk 0:00:30]} 40. Rc2 {[%clk 0:00:07]}  Kf8 {[%clk 0:00:28]} 41. f4 {[%clk 0:00:06]}  Rc4 {[%clk 0:00:28]} 42. e5 {[%clk 0:00:04]}  f6 {[%clk 0:00:23]} 43. exf6 {[%clk 0:00:03]}  Bxf6 {[%clk 0:00:24]} 44. Kf2 {[%clk 0:00:03]}  Ke7 {[%clk 0:00:21]} 45. Ke3 {[%clk 0:00:04]}  Kd6 {[%clk 0:00:19]} 46. Kd3 {[%clk 0:00:04]}  Kd5 {[%clk 0:00:16]} 47. Ra2 {[%clk 0:00:05]}  Rc5 {[%clk 0:00:10]} 48. g4 {[%clk 0:00:05]}  c2 {[%clk 0:00:10]} 49. Rxc2 {[%clk 0:00:03]}  Rxc2 {[%clk 0:00:11]} 50. Kxc2 {[%clk 0:00:04]}  Ke4 {[%clk 0:00:11]} 51. Kd2 {[%clk 0:00:03]}  Bd8 {[%clk 0:00:11]} 52. f5 {[%clk 0:00:02]}  gxf5 {[%clk 0:00:10]} 53. gxf5 {[%clk 0:00:03]}  Kxf5 {[%clk 0:00:10]} 54. Ke3 {[%clk 0:00:04]}  Kg5 {[%clk 0:00:10]} 55. Kf3 {[%clk 0:00:04]}  Kh4 {[%clk 0:00:11]} 56. Kg2 {[%clk 0:00:04]}  Bc7 {[%clk 0:00:11]} 57. Nd4 {[%clk 0:00:05]}  Kh5 {[%clk 0:00:11]} 58. Nf5 {[%clk 0:00:04]}  Bb8 {[%clk 0:00:11]} 59. Kf3 {[%clk 0:00:04]}  Kg5 {[%clk 0:00:11]} 60. Nd4 {[%clk 0:00:05]}  Kh4 {[%clk 0:00:11]} 61. Kg2 {[%clk 0:00:05]}  Ba7 {[%clk 0:00:11]} 62. Nf5+ {[%clk 0:00:04]}  Kg5 {[%clk 0:00:11]} 63. Ng3 {[%clk 0:00:04]}  Kh4 {[%clk 0:00:11]} 64. Ne4 {[%clk 0:00:04]}  Bb8 {[%clk 0:00:09]} 65. Nf6 {[%clk 0:00:05]}  h6 {[%clk 0:00:09]} 66. Ne4 {[%clk 0:00:05]}  Ba7 {[%clk 0:00:09]} 67. Nd6 {[%clk 0:00:05]}  Bb8 {[%clk 0:00:08]} 68. Nf7 {[%clk 0:00:05]}  Kh5 {[%clk 0:00:08]} 69. Nd8 {[%clk 0:00:05]}  Kh4 {[%clk 0:00:08]} 70. Nc6 {[%clk 0:00:05]}  Bc7 {[%clk 0:00:07]} 71. Nd4 {[%clk 0:00:05]}  Bb8 {[%clk 0:00:08]} 72. Nf3+ {[%clk 0:00:06]}  Kh5 {[%clk 0:00:08]} 73. Kf1 {[%clk 0:00:07]}  Kg6 {[%clk 0:00:08]} 74. Ke2 {[%clk 0:00:07]}  Kf5 {[%clk 0:00:08]} 75. Ke3 {[%clk 0:00:07]}  Ba7+ {[%clk 0:00:08]} 76. Ke2 {[%clk 0:00:07]}  Kf4 {[%clk 0:00:09]} 77. Nh4 {[%clk 0:00:06]}  h5 {[%clk 0:00:09]} 78. Ng6+ {[%clk 0:00:05]}  Kg3 {[%clk 0:00:09]} 79. Kf1 {[%clk 0:00:06]}  Bb8 {[%clk 0:00:06]} 80. Kg1 {[%clk 0:00:06]}  Bd6 {[%clk 0:00:06]} 81. h4 {[%clk 0:00:06]}  Kg4 {[%clk 0:00:06]} 82. Kg2 {[%clk 0:00:06]}  Kf5 {[%clk 0:00:06]} 83. Nh8 {[%clk 0:00:04]}  Kf6 {[%clk 0:00:06]} 84. Kf3 {[%clk 0:00:05]}  Kg7 {[%clk 0:00:06]} 85. Ng6 {[%clk 0:00:05]}  Kxg6 {[%clk 0:00:07]} 86. Kg2 {[%clk 0:00:06]}  Kf5 {[%clk 0:00:07]} 87. Kh1 {[%clk 0:00:06]}  Kg4 {[%clk 0:00:08]} 88. Kg1 {[%clk 0:00:07]}  Kh3 {[%clk 0:00:07]} 89. Kh1 {[%clk 0:00:08]}  Bc5 {[%clk 0:00:08]} 1/2-1/2


[Site "https://www.chess.com"]

[Event "Titled Tuesday Blitz May 17 Late 2022"]
[White "Bok, Benjamin"]
[Black "Martinez Alcantara, Jose Eduardo"]
[WhiteFideId "1017063"]
[BlackFideId "3805662"]
[WhiteElo "2658"]
[BlackElo "2690"]
[Result "0-1"]
[Round "05"]
[TimeControl "180+1"]
[Date "2022.05.17"]
[WhiteClock "0:00:08"]
[BlackClock "0:00:16"]

1. c4 {[%clk 0:03:00]}  c5 {[%clk 0:02:59]} 2. Nf3 {[%clk 0:03:01]}  Nf6 {[%clk 0:02:58]} 3. Nc3 {[%clk 0:03:00]}  d5 {[%clk 0:02:58]} 4. cxd5 {[%clk 0:03:00]}  Nxd5 {[%clk 0:02:59]} 5. e3 {[%clk 0:03:00]}  Nxc3 {[%clk 0:02:58]} 6. dxc3 {[%clk 0:03:00]}  Qxd1+ {[%clk 0:02:58]} 7. Kxd1 {[%clk 0:03:01]}  Nc6 {[%clk 0:02:58]} 8. e4 {[%clk 0:02:59]}  e6 {[%clk 0:02:57]} 9. Be3 {[%clk 0:02:58]}  Bd7 {[%clk 0:02:57]} 10. Kc2 {[%clk 0:02:55]}  Be7 {[%clk 0:02:53]} 11. Be2 {[%clk 0:02:49]}  O-O-O {[%clk 0:02:51]} 12. a4 {[%clk 0:02:37]}  f6 {[%clk 0:02:48]} 13. Rhd1 {[%clk 0:02:32]}  Kc7 {[%clk 0:02:36]} 14. a5 {[%clk 0:02:12]}  Bc8 {[%clk 0:02:32]} 15. Nd2 {[%clk 0:02:05]}  e5 {[%clk 0:02:24]} 16. Bc4 {[%clk 0:01:58]}  Nd4+ {[%clk 0:02:10]} 17. Kc1 {[%clk 0:01:29]}  Bd7 {[%clk 0:02:10]} 18. f3 {[%clk 0:01:25]}  Nc6 {[%clk 0:01:50]} 19. Kc2 {[%clk 0:01:22]}  b6 {[%clk 0:01:29]} 20. axb6+ {[%clk 0:01:19]}  axb6 {[%clk 0:01:30]} 21. Bd5 {[%clk 0:01:10]}  Bc8 {[%clk 0:01:30]} 22. Bf2 {[%clk 0:01:03]}  Bb7 {[%clk 0:01:25]} 23. Nc4 {[%clk 0:01:02]}  Ra8 {[%clk 0:01:17]} 24. b4 {[%clk 0:00:54]}  cxb4 {[%clk 0:01:01]} 25. Bxb6+ {[%clk 0:00:47]}  Kb8 {[%clk 0:01:02]} 26. Bxc6 {[%clk 0:00:31]}  Bxc6 {[%clk 0:00:52]} 27. Na5 {[%clk 0:00:23]}  Rc8 {[%clk 0:00:47]} 28. c4 {[%clk 0:00:14]}  Be8 {[%clk 0:00:40]} 29. Kb3 {[%clk 0:00:12]}  Bf8 {[%clk 0:00:20]} 30. c5 {[%clk 0:00:08]}  Bxc5 {[%clk 0:00:15]} 31. Bxc5 {[%clk 0:00:09]}  Rxc5 {[%clk 0:00:16]} 32. Rd8+ {[%clk 0:00:09]}  Rc8 {[%clk 0:00:17]} 33. Rxc8+ {[%clk 0:00:07]}  Kxc8 {[%clk 0:00:18]} 34. Kxb4 {[%clk 0:00:07]}  Kd7 {[%clk 0:00:18]} 35. Nb3 {[%clk 0:00:06]}  Rb8+ {[%clk 0:00:17]} 36. Kc3 {[%clk 0:00:06]}  Rc8+ {[%clk 0:00:16]} 37. Kd2 {[%clk 0:00:05]}  Rc7 {[%clk 0:00:16]} 38. Ra8 {[%clk 0:00:04]}  Ke7 {[%clk 0:00:16]} 39. Nc1 {[%clk 0:00:03]}  Bb5 {[%clk 0:00:16]} 40. Ra5 {[%clk 0:00:03]}  Bf1 {[%clk 0:00:16]} 41. g3 {[%clk 0:00:03]}  Bg2 {[%clk 0:00:17]} 42. Ra3 {[%clk 0:00:03]}  Rd7+ {[%clk 0:00:17]} 43. Ke3 {[%clk 0:00:03]}  Rc7 {[%clk 0:00:18]} 44. Ne2 {[%clk 0:00:03]}  Rc2 {[%clk 0:00:11]} 45. Kf2 {[%clk 0:00:02]}  Bh3 {[%clk 0:00:11]} 46. g4 {[%clk 0:00:03]}  h5 {[%clk 0:00:10]} 47. gxh5 {[%clk 0:00:03]}  Be6 {[%clk 0:00:11]} 48. Ra7+ {[%clk 0:00:03]}  Kf8 {[%clk 0:00:11]} 49. Ke3 {[%clk 0:00:03]}  Bc4 {[%clk 0:00:12]} 50. Ng3 {[%clk 0:00:03]}  Rxh2 {[%clk 0:00:12]} 51. Ra8+ {[%clk 0:00:03]}  Kf7 {[%clk 0:00:12]} 52. Ra7+ {[%clk 0:00:03]}  Kg8 {[%clk 0:00:13]} 53. f4 {[%clk 0:00:03]}  exf4+ {[%clk 0:00:07]} 54. Kxf4 {[%clk 0:00:04]}  Be6 {[%clk 0:00:07]} 55. Re7 {[%clk 0:00:04]}  Rh4+ {[%clk 0:00:08]} 56. Kf3 {[%clk 0:00:04]}  Bg4+ {[%clk 0:00:08]} 57. Kf2 {[%clk 0:00:03]}  Kf8 {[%clk 0:00:09]} 58. Ra7 {[%clk 0:00:03]}  Rh3 {[%clk 0:00:10]} 59. Nf5 {[%clk 0:00:02]}  Bxf5 {[%clk 0:00:08]} 60. exf5 {[%clk 0:00:03]}  Rxh5 {[%clk 0:00:08]} 61. Ra5 {[%clk 0:00:04]}  Kg8 {[%clk 0:00:09]} 62. Kf3 {[%clk 0:00:04]}  Kh7 {[%clk 0:00:09]} 63. Kg4 {[%clk 0:00:04]}  Rg5+ {[%clk 0:00:08]} 64. Kf4 {[%clk 0:00:05]}  Rh5 {[%clk 0:00:09]} 65. Ra2 {[%clk 0:00:05]}  Kh6 {[%clk 0:00:08]} 66. Ra8 {[%clk 0:00:05]}  Rh4+ {[%clk 0:00:08]} 67. Kg3 {[%clk 0:00:04]}  Kg5 {[%clk 0:00:08]} 68. Rg8 {[%clk 0:00:04]}  Rh7 {[%clk 0:00:09]} 69. Kf3 {[%clk 0:00:04]}  Kxf5 {[%clk 0:00:10]} 70. Ra8 {[%clk 0:00:05]}  g5 {[%clk 0:00:10]} 71. Ra5+ {[%clk 0:00:04]}  Kg6 {[%clk 0:00:11]} 72. Kg4 {[%clk 0:00:05]}  Rh4+ {[%clk 0:00:12]} 73. Kg3 {[%clk 0:00:05]}  Rb4 {[%clk 0:00:13]} 74. Ra8 {[%clk 0:00:05]}  Rb3+ {[%clk 0:00:12]} 75. Kg2 {[%clk 0:00:06]}  f5 {[%clk 0:00:13]} 76. Ra6+ {[%clk 0:00:06]}  Kh5 {[%clk 0:00:13]} 77. Ra8 {[%clk 0:00:07]}  Kg4 {[%clk 0:00:14]} 78. Ra4+ {[%clk 0:00:06]}  f4 {[%clk 0:00:14]} 79. Rc4 {[%clk 0:00:07]}  Rb2+ {[%clk 0:00:15]} 80. Kg1 {[%clk 0:00:07]}  Kg3 {[%clk 0:00:15]} 81. Rc3+ {[%clk 0:00:08]}  f3 {[%clk 0:00:16]} 0-1


[Site "https://www.chess.com"]

[Event "Titled Tuesday Blitz May 17 Late 2022"]
[White "Chigaev, Maksim"]
[Black "Barria Zuniga, Daniel"]
[WhiteFideId "4108116"]
[BlackFideId "3400816"]
[WhiteElo "2457"]
[BlackElo "2414"]
[Result "1/2-1/2"]
[Round "05"]
[TimeControl "180+1"]
[Date "2022.05.17"]
[WhiteClock "0:00:04"]
[BlackClock "0:00:10"]

1. d4 {[%clk 0:03:00]}  d5 {[%clk 0:02:54]} 2. c4 {[%clk 0:02:58]}  e6 {[%clk 0:02:54]} 3. Nf3 {[%clk 0:02:58]}  Nf6 {[%clk 0:02:54]} 4. Nc3 {[%clk 0:02:58]}  dxc4 {[%clk 0:02:54]} 5. e4 {[%clk 0:02:54]}  Bb4 {[%clk 0:02:54]} 6. Bxc4 {[%clk 0:02:51]}  Nxe4 {[%clk 0:02:53]} 7. O-O {[%clk 0:02:52]}  Nf6 {[%clk 0:02:53]} 8. Qe2 {[%clk 0:02:52]}  O-O {[%clk 0:02:50]} 9. Rd1 {[%clk 0:02:52]}  c6 {[%clk 0:02:49]} 10. Ne5 {[%clk 0:02:49]}  Be7 {[%clk 0:02:45]} 11. Rd3 {[%clk 0:02:44]}  a5 {[%clk 0:02:42]} 12. Rg3 {[%clk 0:02:36]}  Qxd4 {[%clk 0:02:30]} 13. Bh6 {[%clk 0:02:32]}  g6 {[%clk 0:02:28]} 14. Rd1 {[%clk 0:02:32]}  Qc5 {[%clk 0:02:21]} 15. Bxf8 {[%clk 0:02:07]}  Kxf8 {[%clk 0:02:01]} 16. Rg5 {[%clk 0:01:56]}  Nd5 {[%clk 0:01:43]} 17. Qf3 {[%clk 0:01:46]}  f5 {[%clk 0:01:30]} 18. Bxd5 {[%clk 0:01:02]}  Bxg5 {[%clk 0:01:11]} 19. Ne4 {[%clk 0:01:02]}  Qe7 {[%clk 0:01:04]} 20. Bc4 {[%clk 0:00:52]}  Bh6 {[%clk 0:00:23]} 21. Nd6 {[%clk 0:00:37]}  Bg7 {[%clk 0:00:19]} 22. Nxc8 {[%clk 0:00:16]}  Qc7 {[%clk 0:00:19]} 23. Nxg6+ {[%clk 0:00:05]}  hxg6 {[%clk 0:00:16]} 24. Bxe6 {[%clk 0:00:06]}  Na6 {[%clk 0:00:14]} 25. Qa3+ {[%clk 0:00:03]}  Nb4 {[%clk 0:00:14]} 26. Rd7 {[%clk 0:00:03]}  Qe5 {[%clk 0:00:13]} 27. Rf7+ {[%clk 0:00:03]}  Ke8 {[%clk 0:00:13]} 28. Re7+ {[%clk 0:00:04]}  Kf8 {[%clk 0:00:09]} 29. Rf7+ {[%clk 0:00:03]}  Ke8 {[%clk 0:00:09]} 30. Re7+ {[%clk 0:00:03]}  Kf8 {[%clk 0:00:10]} 31. Rf7+ {[%clk 0:00:04]} 1/2-1/2


[Site "https://www.chess.com"]

[Event "Titled Tuesday Blitz May 17 Late 2022"]
[White "Guzman, Christopher"]
[Black "Jian, Alex"]
[WhiteFideId "6405096"]
[BlackFideId "30901022"]
[WhiteElo "2244"]
[BlackElo "2111"]
[Result "1-0"]
[Round "05"]
[TimeControl "180+1"]
[Date "2022.05.17"]
[WhiteClock "0:01:02"]
[BlackClock "0:00:08"]

1. e4 {[%clk 0:03:00]}  c5 {[%clk 0:02:58]} 2. Nf3 {[%clk 0:03:00]}  e6 {[%clk 0:02:59]} 3. d4 {[%clk 0:03:01]}  cxd4 {[%clk 0:02:59]} 4. Nxd4 {[%clk 0:03:01]}  a6 {[%clk 0:03:00]} 5. g3 {[%clk 0:03:01]}  Nf6 {[%clk 0:02:55]} 6. Bg2 {[%clk 0:03:00]}  Be7 {[%clk 0:02:49]} 7. O-O {[%clk 0:03:00]}  d6 {[%clk 0:02:49]} 8. c4 {[%clk 0:02:59]}  O-O {[%clk 0:02:48]} 9. b3 {[%clk 0:02:58]}  Qc7 {[%clk 0:02:37]} 10. Bb2 {[%clk 0:02:58]}  Nc6 {[%clk 0:02:37]} 11. Nc3 {[%clk 0:02:58]}  Bd7 {[%clk 0:02:33]} 12. Rc1 {[%clk 0:02:58]}  Nxd4 {[%clk 0:02:32]} 13. Qxd4 {[%clk 0:02:57]}  Bc6 {[%clk 0:02:32]} 14. Nd5 {[%clk 0:02:54]}  Qd8 {[%clk 0:01:47]} 15. Nxe7+ {[%clk 0:02:53]}  Qxe7 {[%clk 0:01:47]} 16. Rfd1 {[%clk 0:02:53]}  Rfd8 {[%clk 0:01:47]} 17. Ba3 {[%clk 0:02:53]}  Ne8 {[%clk 0:01:45]} 18. e5 {[%clk 0:02:52]}  dxe5 {[%clk 0:01:30]} 19. Bxe7 {[%clk 0:02:19]}  Rxd4 {[%clk 0:01:30]} 20. Rxd4 {[%clk 0:02:16]}  exd4 {[%clk 0:01:29]} 21. Bxc6 {[%clk 0:02:14]}  bxc6 {[%clk 0:01:29]} 22. Rd1 {[%clk 0:02:14]}  e5 {[%clk 0:01:18]} 23. f4 {[%clk 0:02:14]}  f6 {[%clk 0:00:35]} 24. fxe5 {[%clk 0:02:13]}  fxe5 {[%clk 0:00:35]} 25. Re1 {[%clk 0:02:13]}  d3 {[%clk 0:00:30]} 26. Bb4 {[%clk 0:01:59]}  Rd8 {[%clk 0:00:27]} 27. Bd2 {[%clk 0:01:59]}  Nf6 {[%clk 0:00:19]} 28. Rxe5 {[%clk 0:01:59]}  Kf7 {[%clk 0:00:19]} 29. h3 {[%clk 0:01:53]}  Kg6 {[%clk 0:00:10]} 30. Kf2 {[%clk 0:01:51]}  Rd7 {[%clk 0:00:07]} 31. Ke3 {[%clk 0:01:50]}  Nh5 {[%clk 0:00:05]} 32. g4 {[%clk 0:01:46]}  Ng3 {[%clk 0:00:06]} 33. Kf2 {[%clk 0:01:41]}  Nh1+ {[%clk 0:00:06]} 34. Kg2 {[%clk 0:01:40]}  Rf7 {[%clk 0:00:06]} 35. Kxh1 {[%clk 0:01:38]}  Rf2 {[%clk 0:00:06]} 36. Ba5 {[%clk 0:01:33]}  Rxa2 {[%clk 0:00:05]} 37. Bb4 {[%clk 0:01:30]}  d2 {[%clk 0:00:04]} 38. Bxd2 {[%clk 0:01:29]}  Rxd2 {[%clk 0:00:05]} 39. Re3 {[%clk 0:01:25]}  Rb2 {[%clk 0:00:05]} 40. Kg1 {[%clk 0:01:25]}  Kg5 {[%clk 0:00:05]} 41. Kf1 {[%clk 0:01:24]}  Kf4 {[%clk 0:00:05]} 42. Rd3 {[%clk 0:01:23]}  Ke4 {[%clk 0:00:05]} 43. Rg3 {[%clk 0:01:23]}  Kf4 {[%clk 0:00:05]} 44. Rc3 {[%clk 0:01:24]}  Ke4 {[%clk 0:00:05]} 45. Ke1 {[%clk 0:01:24]}  Kd4 {[%clk 0:00:05]} 46. Rf3 {[%clk 0:01:22]}  Ke4 {[%clk 0:00:05]} 47. Rg3 {[%clk 0:01:21]}  c5 {[%clk 0:00:05]} 48. Kd1 {[%clk 0:01:21]}  g5 {[%clk 0:00:05]} 49. Kc1 {[%clk 0:01:20]}  Rh2 {[%clk 0:00:05]} 50. Kb1 {[%clk 0:01:20]}  Kd4 {[%clk 0:00:05]} 51. Rf3 {[%clk 0:01:19]}  h6 {[%clk 0:00:03]} 52. Kc1 {[%clk 0:01:16]}  Ke4 {[%clk 0:00:03]} 53. Rg3 {[%clk 0:01:12]}  Kf4 {[%clk 0:00:03]} 54. Rc3 {[%clk 0:01:13]}  Ke4 {[%clk 0:00:03]} 55. Kb1 {[%clk 0:01:11]}  Kd4 {[%clk 0:00:03]} 56. Rf3 {[%clk 0:01:11]}  Ke4 {[%clk 0:00:03]} 57. Rf5 {[%clk 0:01:09]}  Rxh3 {[%clk 0:00:02]} 58. Kb2 {[%clk 0:01:09]}  Rh2+ {[%clk 0:00:02]} 59. Kc3 {[%clk 0:01:08]}  h5 {[%clk 0:00:03]} 60. Rxg5 {[%clk 0:01:08]}  h4 {[%clk 0:00:03]} 61. Rxc5 {[%clk 0:01:08]}  h3 {[%clk 0:00:03]} 62. Rh5 {[%clk 0:01:08]}  Rh1 {[%clk 0:00:03]} 63. Kb4 {[%clk 0:01:07]}  h2 {[%clk 0:00:04]} 64. c5 {[%clk 0:01:06]}  Kf4 {[%clk 0:00:04]} 65. c6 {[%clk 0:01:05]}  Kxg4 {[%clk 0:00:04]} 66. Rh8 {[%clk 0:01:05]}  Rc1 {[%clk 0:00:02]} 67. Rxh2 {[%clk 0:01:04]}  Rxc6 {[%clk 0:00:03]} 68. Ka4 {[%clk 0:01:03]}  Kf5 {[%clk 0:00:02]} 69. Re2 {[%clk 0:01:04]}  Kf4 {[%clk 0:00:02]} 70. Ka5 {[%clk 0:01:03]}  Rg6 {[%clk 0:00:03]} 71. b4 {[%clk 0:01:03]}  Kf3 {[%clk 0:00:03]} 72. Re8 {[%clk 0:01:03]}  Kf4 {[%clk 0:00:03]} 73. Ra8 {[%clk 0:01:02]}  Ke4 {[%clk 0:00:04]} 74. Rxa6 {[%clk 0:01:03]}  Rg5+ {[%clk 0:00:04]} 75. b5 {[%clk 0:01:02]}  Kd4 {[%clk 0:00:04]} 76. Rc6 {[%clk 0:01:03]}  Rg8 {[%clk 0:00:03]} 77. b6 {[%clk 0:01:02]}  Kd5 {[%clk 0:00:04]} 78. Rc2 {[%clk 0:01:02]}  Rg1 {[%clk 0:00:03]} 79. b7 {[%clk 0:01:01]}  Ra1+ {[%clk 0:00:03]} 80. Kb6 {[%clk 0:01:01]}  Rb1+ {[%clk 0:00:03]} 81. Kc7 {[%clk 0:01:01]}  Rb3 {[%clk 0:00:02]} 82. b8=Q {[%clk 0:01:00]}  Rxb8 {[%clk 0:00:03]} 83. Kxb8 {[%clk 0:01:00]}  Kd4 {[%clk 0:00:04]} 84. Kb7 {[%clk 0:01:00]}  Kd3 {[%clk 0:00:04]} 85. Rc6 {[%clk 0:01:00]}  Kd4 {[%clk 0:00:05]} 86. Kb6 {[%clk 0:01:01]}  Kd5 {[%clk 0:00:06]} 87. Kb5 {[%clk 0:01:01]}  Ke5 {[%clk 0:00:06]} 88. Kc5 {[%clk 0:01:01]}  Kf5 {[%clk 0:00:07]} 89. Rd6 {[%clk 0:01:01]}  Kg5 {[%clk 0:00:07]} 90. Kd5 {[%clk 0:01:01]}  Kf5 {[%clk 0:00:08]} 91. Re6 {[%clk 0:01:02]} 1-0


[Site "https://www.chess.com"]

[Event "Titled Tuesday Blitz May 17 Late 2022"]
[White "Izoria, Zviad"]
[Black "Holt, Conrad"]
[WhiteFideId "13601733"]
[BlackFideId "2034387"]
[WhiteElo "2626"]
[BlackElo "2586"]
[Result "0-1"]
[Round "05"]
[TimeControl "180+1"]
[Date "2022.05.17"]
[WhiteClock "0:00:02"]
[BlackClock "0:00:12"]

1. c4 {[%clk 0:03:00]}  c6 {[%clk 0:02:57]} 2. e4 {[%clk 0:03:00]}  d5 {[%clk 0:02:57]} 3. exd5 {[%clk 0:03:00]}  Nf6 {[%clk 0:02:56]} 4. d4 {[%clk 0:03:01]}  cxd5 {[%clk 0:02:56]} 5. Nc3 {[%clk 0:03:00]}  e6 {[%clk 0:02:55]} 6. Nf3 {[%clk 0:02:59]}  Bb4 {[%clk 0:02:55]} 7. Bd3 {[%clk 0:02:57]}  dxc4 {[%clk 0:02:54]} 8. Bxc4 {[%clk 0:02:58]}  O-O {[%clk 0:02:53]} 9. O-O {[%clk 0:02:58]}  h6 {[%clk 0:02:48]} 10. a3 {[%clk 0:02:48]}  Bxc3 {[%clk 0:02:47]} 11. bxc3 {[%clk 0:02:47]}  Qc7 {[%clk 0:02:47]} 12. Bd3 {[%clk 0:01:54]}  Qxc3 {[%clk 0:02:43]} 13. Bf4 {[%clk 0:01:52]}  Nd5 {[%clk 0:02:32]} 14. Bd6 {[%clk 0:01:44]}  Rd8 {[%clk 0:02:32]} 15. Rc1 {[%clk 0:01:43]}  Qa5 {[%clk 0:02:26]} 16. Bg3 {[%clk 0:00:19]}  Nc6 {[%clk 0:02:19]} 17. Ne5 {[%clk 0:00:19]}  Nxe5 {[%clk 0:01:49]} 18. Bxe5 {[%clk 0:00:20]}  Qxa3 {[%clk 0:01:44]} 19. Qg4 {[%clk 0:00:19]}  Qf8 {[%clk 0:01:39]} 20. Bc4 {[%clk 0:00:17]}  Bd7 {[%clk 0:01:29]} 21. Rfe1 {[%clk 0:00:16]}  Rac8 {[%clk 0:01:25]} 22. Qg3 {[%clk 0:00:16]}  Rc6 {[%clk 0:01:13]} 23. Bxd5 {[%clk 0:00:10]}  exd5 {[%clk 0:01:11]} 24. Rb1 {[%clk 0:00:09]}  Rg6 {[%clk 0:01:07]} 25. Qb3 {[%clk 0:00:08]}  Bc6 {[%clk 0:01:06]} 26. Bg3 {[%clk 0:00:08]}  Re8 {[%clk 0:01:04]} 27. h3 {[%clk 0:00:08]}  Rge6 {[%clk 0:01:02]} 28. Re5 {[%clk 0:00:07]}  Rxe5 {[%clk 0:01:01]} 29. Bxe5 {[%clk 0:00:08]}  f6 {[%clk 0:01:00]} 30. Bf4 {[%clk 0:00:08]}  a5 {[%clk 0:01:00]} 31. Qc3 {[%clk 0:00:08]}  a4 {[%clk 0:00:59]} 32. Bc1 {[%clk 0:00:05]}  Re2 {[%clk 0:00:56]} 33. Ba3 {[%clk 0:00:04]}  Qe8 {[%clk 0:00:56]} 34. Rb2 {[%clk 0:00:04]}  Re1+ {[%clk 0:00:53]} 35. Kh2 {[%clk 0:00:04]}  Qb8+ {[%clk 0:00:52]} 36. g3 {[%clk 0:00:04]}  Qe8 {[%clk 0:00:50]} 37. Bd6 {[%clk 0:00:03]}  Qe4 {[%clk 0:00:48]} 38. f3 {[%clk 0:00:02]}  Qe3 {[%clk 0:00:36]} 39. Qxe3 {[%clk 0:00:01]}  Rxe3 {[%clk 0:00:36]} 40. Kg2 {[%clk 0:00:01]}  Kf7 {[%clk 0:00:28]} 41. Kf2 {[%clk 0:00:01]}  Rc3 {[%clk 0:00:28]} 42. Bc5 {[%clk 0:00:02]}  h5 {[%clk 0:00:16]} 43. g4 {[%clk 0:00:02]}  h4 {[%clk 0:00:16]} 44. Re2 {[%clk 0:00:02]}  Kg8 {[%clk 0:00:13]} 45. Rb2 {[%clk 0:00:02]}  Rc1 {[%clk 0:00:11]} 46. Kg2 {[%clk 0:00:01]}  Rd1 {[%clk 0:00:11]} 47. Kf2 {[%clk 0:00:02]}  Kh7 {[%clk 0:00:11]} 48. Kg2 {[%clk 0:00:02]}  Kg6 {[%clk 0:00:12]} 49. Kf2 {[%clk 0:00:02]}  f5 {[%clk 0:00:12]} 0-1


[Site "https://www.chess.com"]

[Event "Titled Tuesday Blitz May 17 Late 2022"]
[White "Keymer, Vincent"]
[Black "Rustemov, Alexander"]
[WhiteFideId "12940690"]
[BlackFideId "4119002"]
[WhiteElo "2548"]
[BlackElo "2800"]
[Result "1-0"]
[Round "05"]
[TimeControl "180+1"]
[Date "2022.05.17"]
[WhiteClock "0:00:24"]
[BlackClock "0:00:23"]

1. Nf3 {[%clk 0:03:00]}  d5 {[%clk 0:02:59]} 2. e3 {[%clk 0:03:01]}  c6 {[%clk 0:02:59]} 3. c4 {[%clk 0:03:01]}  Nf6 {[%clk 0:02:58]} 4. Nc3 {[%clk 0:03:01]}  a6 {[%clk 0:02:55]} 5. d4 {[%clk 0:03:00]}  b5 {[%clk 0:02:54]} 6. b3 {[%clk 0:02:59]}  Bf5 {[%clk 0:02:53]} 7. Bd3 {[%clk 0:02:50]}  Bxd3 {[%clk 0:02:53]} 8. Qxd3 {[%clk 0:02:51]}  e6 {[%clk 0:02:53]} 9. O-O {[%clk 0:02:50]}  Be7 {[%clk 0:02:42]} 10. a4 {[%clk 0:02:47]}  b4 {[%clk 0:02:32]} 11. Ne2 {[%clk 0:02:45]}  a5 {[%clk 0:02:30]} 12. Bb2 {[%clk 0:02:44]}  O-O {[%clk 0:02:29]} 13. Rac1 {[%clk 0:02:36]}  Nbd7 {[%clk 0:02:28]} 14. Rfd1 {[%clk 0:02:18]}  Qb6 {[%clk 0:02:21]} 15. Ng3 {[%clk 0:02:13]}  Rfd8 {[%clk 0:02:09]} 16. e4 {[%clk 0:02:12]}  dxe4 {[%clk 0:02:00]} 17. Nxe4 {[%clk 0:02:13]}  Nxe4 {[%clk 0:01:59]} 18. Qxe4 {[%clk 0:02:14]}  Bf6 {[%clk 0:01:52]} 19. h4 {[%clk 0:01:23]}  Qc7 {[%clk 0:01:46]} 20. Rd2 {[%clk 0:01:16]}  Rac8 {[%clk 0:01:45]} 21. Rcd1 {[%clk 0:01:15]}  Nf8 {[%clk 0:01:43]} 22. g3 {[%clk 0:01:13]}  h6 {[%clk 0:01:39]} 23. Kg2 {[%clk 0:01:12]}  Ng6 {[%clk 0:01:37]} 24. Bc1 {[%clk 0:01:05]}  Rd7 {[%clk 0:01:33]} 25. h5 {[%clk 0:01:02]}  Ne7 {[%clk 0:01:32]} 26. Rd3 {[%clk 0:01:02]}  Rcd8 {[%clk 0:01:28]} 27. Bf4 {[%clk 0:01:02]}  Qb6 {[%clk 0:01:27]} 28. Be5 {[%clk 0:01:03]}  Bxe5 {[%clk 0:01:25]} 29. Nxe5 {[%clk 0:01:02]}  Rc7 {[%clk 0:01:14]} 30. Qg4 {[%clk 0:00:51]}  Nf5 {[%clk 0:01:12]} 31. d5 {[%clk 0:00:49]}  cxd5 {[%clk 0:01:07]} 32. cxd5 {[%clk 0:00:46]}  Rc2 {[%clk 0:00:34]} 33. Qf4 {[%clk 0:00:37]}  Rxd5 {[%clk 0:00:30]} 34. Rxd5 {[%clk 0:00:31]}  exd5 {[%clk 0:00:31]} 35. Qxf5 {[%clk 0:00:28]}  Qe6 {[%clk 0:00:23]} 36. Qxc2 {[%clk 0:00:24]}  Qxe5 {[%clk 0:00:23]} 37. Qd3 {[%clk 0:00:24]} 1-0


[Site "https://www.chess.com"]